[Event "68th Warsaw-ch-B 2019"]
[Site "Warsaw"]
[Date "2019.11.17"]
[Round "6.4"]
[White "Bartodziej, Bartosz"]
[Black "Muck, Piotr"]
[Result "1-0"]
[ECO "B92"]
[WhiteElo "1734"]
[BlackElo "1490"]
[Annotator "NA RC"]
[PlyCount "141"]
[EventDate "2019.11.14"]
[EventType "swiss"]
[EventCountry "POL"]
[SourceTitle "playchess.com"]
[Source "ChessBase"]
[SourceQuality "1"]
[TimeControl "5400+30"]

1. e4 {[%emt 0:40:05]} c5 {[%emt 0:29:47]} 2. Nf3 {[%emt 0:00:04]} d6 {[%emt 0:00:07]} 3. d4 {[%emt 0:00:37]} cxd4 {[%emt 0:00:08]} 4. Nxd4 {[%emt 0:00:06]} Nf6 {[%emt 0:00:08]} 5. Nc3 {[%emt 0:00:34]} a6 {[%emt 0:00:11]} 6. Be2 {[%emt 0:00:59]} e5 {[%emt 0:00:09]} 7. Nb3 {[%emt 0:00:47]} Be6 {[%emt 0:00:16]} 8. Bg5 {[%emt 0:01:19]} Be7 {[%emt 0:00:30]} 9. O-O {[%emt 0:01:18]} Nbd7 {[%emt 0:00:12]} 10. Qd2 {[%emt 0:02:04]} Rc8 {[%emt 0:00:31]} 11. f3 {[%emt 0:05:50]} O-O {[%emt 0:00:36]} 12. Rad1 {[%emt 0:03:19]} b5 {[%emt 0:02:37]} 13. a3 {[%emt 0:00:47]} Qc7 {[%emt 0:00:39]} 14. Nc1 {[%emt 0:04:05]} Rfd8 {[%emt 0:01:16]} 15. Nd3 {[%emt 0:02:27]} Nb6 {[%emt 0:01:15]} 16. Nb4 {[%emt 0:02:42]} Nc4 {[%emt 0:01:42]} 17. Bxc4 {[%emt 0:01:14]} Bxc4 {[%emt 0:00:15]} 18. Bxf6 {[%emt 0:03:13]} Bxf6 {[%emt 0:00:23]} 19. Rf2 {[%emt 0:01:45]} a5 {[%emt 0:04:33]} 20. Nbd5 {[%emt 0:00:33]} Bxd5 {[%emt 0:00:11]} 21. Nxd5 {[%emt 0:00:13]} Qa7 {[%emt 0:01:09]} 22. Qe3 {[%emt 0:02:38]} Qxe3 {[%emt 0:00:41]} 23. Nxe3 {[%emt 0:00:05]} g6 {[%emt 0:00:55]} 24. Nd5 {[%emt 0:01:16]} Kg7 {[%emt 0:00:22]} 25. c3 {[%emt 0:02:39]} Rc6 {[%emt 0:01:01]} 26. Rfd2 {[%emt 0:01:51]} Bg5 {[%emt 0:01:03]} 27. Rd3 {[%emt 0:00:25]} h5 {[%emt 0:00:36]} 28. g3 {[%emt 0:02:35]} f6 {[%emt 0:00:28]} 29. h4 {[%emt 0:03:07]} Bh6 {[%emt 0:00:10]} 30. Kf2 {[%emt 0:00:41]} Kf7 {[%emt 0:00:13]} 31. f4 {[%emt 0:03:31]} Bf8 {[%emt 0:03:52]} 32. Ne3 {[%emt 0:00:58]} Rb8 {[%emt 0:01:50]} 33. Ra1 {[%emt 0:03:19]} Be7 {[%emt 0:00:39]} 34. b4 {[%emt 0:01:09]} Bd8 {[%emt 0:00:45]} 35. Kf3 {[%emt 0:01:38]} Ra8 {[%emt 0:01:34]} 36. fxe5 {[%emt 0:03:08]} fxe5 {[%emt 0:01:06]} 37. g4 {[%emt 0:01:32]} hxg4+ {[%emt 0:00:25]} 38. Kxg4 {[%emt 0:00:10]} Ke6 {[%emt 0:01:21]} 39. h5 {[%emt 0:02:04]} gxh5+ {[%emt 0:00:12]} 40. Kxh5 {[%emt 0:00:03]} Ra7 {[%emt 0:00:51]} 41. Nf5 {[%emt 0:00:33]} axb4 {[%emt 0:03:24]} 42. cxb4 {[%emt 0:00:26]} Be7 {[%emt 0:00:49]} 43. Rg1 {[%emt 0:00:56]} Bf6 {[%emt 0:01:48]} 44. Rf3 {[%emt 0:01:44]} Rc4 {[%emt 0:01:23]} 45. Rg4 {[%emt 0:00:53]} Ra8 {[%emt 0:00:40]} 46. Nh6 {[%emt 0:00:56]} Rcc8 {[%emt 0:05:44]} 47. Rg6 {[%emt 0:00:17]} Rf8 {[%emt 0:00:08]} 48. Ng8 {[%emt 0:00:46]} Rxg8 {[%emt 0:00:14]} 49. Rfxf6+ {[%emt 0:00:09]} Ke7 {[%emt 0:01:25]} 50. Re6+ {[%emt 0:00:27]} Kd7 {[%emt 0:01:22]} 51. Rxd6+ {[%emt 0:00:06]} Ke7 {[%emt 0:01:41]} 52. Rde6+ {[%emt 0:00:07]} Kd7 {[%emt 0:00:40]} 53. Rxg8 {[%emt 0:00:10]} Rxg8 {[%emt 0:00:10]} 54. Rxe5 {[%emt 0:00:04]} Rg3 {[%emt 0:00:44]} 55. Rxb5 {[%emt 0:00:30]} Rxa3 {[%emt 0:00:20]} 56. Kg5 {[%emt 0:00:11]} Rf3 {[%emt 0:00:53]} 57. Rf5 {[%emt 0:00:38]} Rb3 {[%emt 0:00:25]} 58. b5 {[%emt 0:00:06]} Rb4 {[%emt 0:00:15]} 59. Re5 {[%emt 0:00:48]} Rb3 {[%emt 0:01:28]} 60. Kf6 {[%emt 0:00:17]} Rf3+ {[%emt 0:00:40]} 61. Rf5 {[%emt 0:00:12]} Rb3 {[%emt 0:00:32]} 62. e5 {[%emt 0:00:24]} Ke8 {[%emt 0:01:13]} 63. e6 {[%emt 0:00:17]} Rb2 {[%emt 0:00:52]} 64. e7 {[%emt 0:00:33]} Re2 {[%emt 0:00:39]} 65. b6 {[%emt 0:01:42]} Rxe7 {[%emt 0:00:14]} 66. Re5 {[%emt 0:00:09]} Rxe5 {[%emt 0:00:14]} 67. Kxe5 {[%emt 0:00:04]} Kd7 {[%emt 0:01:01]} 68. Kd5 {[%emt 0:00:04]} Kc8 {[%emt 0:00:12]} 69. Kc6 {[%emt 0:00:05]} Kb8 {[%emt 0:00:15]} 70. b7 {[%emt 0:00:04]} Ka7 {[%emt 0:00:26]} 71. Kc7 {[%emt 0:00:04]} 1-0

[Event "68th Warsaw-ch-B 2019"]
[Site "Warsaw"]
[Date "2019.11.17"]
[Round "7.1"]
[White "Jaworski, Jakub"]
[Black "Klim, Filip"]
[Result "1-0"]
[ECO "A01"]
[WhiteElo "1646"]
[BlackElo "1634"]
[Annotator "NA RC"]
[PlyCount "44"]
[EventDate "2019.11.14"]
[EventType "swiss"]
[EventCountry "POL"]
[SourceTitle "playchess.com"]
[Source "ChessBase"]
[SourceQuality "1"]
[TimeControl "5400+30"]

1. b3 {[%emt 0:29:33]} d5 {[%emt 0:29:52]} 2. Bb2 {[%emt 0:00:04]} Bf5 {[%emt 0:00:26]} 3. e3 {[%emt 0:00:18]} e6 {[%emt 0:00:36]} 4. f4 {[%emt 0:00:28]} Nf6 {[%emt 0:01:03]} 5. Nf3 {[%emt 0:00:17]} c5 {[%emt 0:01:07]} 6. Ne5 {[%emt 0:02:36]} Nbd7 {[%emt 0:05:52]} 7. Be2 {[%emt 0:01:38]} Be7 {[%emt 0:03:15]} 8. O-O {[%emt 0:01:04]} O-O {[%emt 0:03:32]} 9. g4 {[%emt 0:04:31]} Bg6 {[%emt 0:04:58]} 10. f5 {[%emt 0:01:50]} exf5 {[%emt 0:11:01]} 11. gxf5 {[%emt 0:00:40]} Bd6 {[%emt 0:01:25]} 12. d4 {[%emt 0:08:14]} Ne4 {[%emt 0:02:23]} 13. fxg6 {[%emt 0:04:40]} Qg5+ {[%emt 0:03:40]} 14. Kh1 {[%emt 0:00:12]} fxg6 {[%emt 0:03:11]} 15. Bf3 {[%emt 0:06:55]} Qh4 {[%emt 0:07:13]} 16. Qe1 {[%emt 0:07:35]} Qh3 {[%emt 0:04:54]} 17. Nd2 {[%emt 0:05:58]} Nxd2 {[%emt 0:09:50]} 18. Qxd2 {[%emt 0:00:15]} Bxe5 {[%emt 0:01:02]} 19. dxe5 {[%emt 0:00:24]} d4 {[%emt 0:00:34]} 20. Bg2 {[%emt 0:01:22]} Qe6 {[%emt 0:02:11]} 21. exd4 {[%emt 0:00:29]} cxd4 {[%emt 0:00:46]} 22. Qxd4 {[%emt 0:00:11]} Qd6 1-0

[Event "68th Warsaw-ch-B 2019"]
[Site "Warsaw"]
[Date "2019.11.17"]
[Round "7.2"]
[White "Gierech, Pawel"]
[Black "Wilczynski, Adam"]
[Result "1-0"]
[ECO "A05"]
[WhiteElo "1652"]
[BlackElo "1617"]
[Annotator "NA RC"]
[PlyCount "107"]
[EventDate "2019.11.14"]
[EventType "swiss"]
[EventCountry "POL"]
[SourceTitle "playchess.com"]
[Source "ChessBase"]
[SourceQuality "1"]
[TimeControl "5400+30"]

1. Nf3 {[%emt 0:29:20]} Nf6 {[%emt 0:29:18]} 2. b3 {[%emt 0:00:36]} b6 {[%emt 0:01:34]} 3. Bb2 {[%emt 0:00:31]} Bb7 {[%emt 0:00:44]} 4. e3 {[%emt 0:01:38]} c5 {[%emt 0:02:00]} 5. d4 {[%emt 0:01:11]} e6 {[%emt 0:01:33]} 6. Bd3 {[%emt 0:02:29]} Be7 {[%emt 0:02:20]} 7. O-O {[%emt 0:00:20]} O-O {[%emt 0:00:36]} 8. Nbd2 {[%emt 0:01:30]} cxd4 {[%emt 0:01:21]} 9. exd4 {[%emt 0:01:21]} Nc6 {[%emt 0:04:25]} 10. a3 {[%emt 0:01:18]} d6 {[%emt 0:02:17]} 11. Re1 {[%emt 0:01:34]} Re8 {[%emt 0:00:41]} 12. Ne4 {[%emt 0:03:28]} Nxe4 {[%emt 0:05:20]} 13. Bxe4 {[%emt 0:01:29]} Bf6 {[%emt 0:01:34]} 14. Rb1 {[%emt 0:00:38]} d5 {[%emt 0:04:36]} 15. Bd3 {[%emt 0:00:29]} g6 {[%emt 0:00:38]} 16. Ne5 {[%emt 0:01:08]} Qd6 {[%emt 0:03:19]} 17. Ng4 {[%emt 0:08:08]} Bg7 {[%emt 0:01:17]} 18. Qd2 {[%emt 0:07:31]} Qf8 {[%emt 0:01:59]} 19. Qg5 {[%emt 0:06:05]} f5 {[%emt 0:04:11]} 20. Ne5 {[%emt 0:02:29]} Nxe5 {[%emt 0:01:37]} 21. dxe5 {[%emt 0:00:16]} Qf7 {[%emt 0:03:27]} 22. Bd4 {[%emt 0:01:37]} h6 {[%emt 0:01:19]} 23. Qg3 {[%emt 0:00:42]} Rec8 {[%emt 0:02:48]} 24. b4 {[%emt 0:01:20]} Rc7 {[%emt 0:00:55]} 25. f4 {[%emt 0:00:24]} Rac8 {[%emt 0:01:18]} 26. Rf1 {[%emt 0:02:15]} Kh7 {[%emt 0:01:41]} 27. Qf3 {[%emt 0:00:53]} Bf8 {[%emt 0:01:56]} 28. g4 {[%emt 0:01:13]} Qe8 {[%emt 0:02:13]} 29. h4 {[%emt 0:03:47]} Rg7 {[%emt 0:01:33]} 30. Kf2 {[%emt 0:01:41]} Qa4 {[%emt 0:01:22]} 31. h5 {[%emt 0:01:23]} Rxc2+ {[%emt 0:02:23]} 32. Bxc2 {[%emt 0:01:11]} Qxc2+ {[%emt 0:00:23]} 33. Qe2 {[%emt 0:00:21]} Qxe2+ {[%emt 0:01:50]} 34. Kxe2 {[%emt 0:00:03]} Rc7 {[%emt 0:02:39]} 35. gxf5 {[%emt 0:01:27]} gxf5 {[%emt 0:00:21]} 36. Rfc1 {[%emt 0:00:56]} Rc4 {[%emt 0:00:15]} 37. Kd3 {[%emt 0:02:01]} Ba6 {[%emt 0:00:41]} 38. Rxc4 {[%emt 0:00:54]} Bxc4+ {[%emt 0:00:50]} 39. Ke3 {[%emt 0:00:23]} Kg7 {[%emt 0:00:46]} 40. a4 {[%emt 0:00:51]} Be7 {[%emt 0:02:27]} 41. a5 {[%emt 0:00:40]} Bd8 {[%emt 0:00:52]} 42. axb6 {[%emt 0:00:36]} axb6 {[%emt 0:00:45]} 43. Rg1+ {[%emt 0:00:20]} Kf7 {[%emt 0:01:07]} 44. Rg6 {[%emt 0:00:11]} Be7 {[%emt 0:01:07]} 45. Bc3 {[%emt 0:00:48]} Bf8 {[%emt 0:00:37]} 46. Rf6+ {[%emt 0:02:07]} Ke7 {[%emt 0:00:31]} 47. b5 {[%emt 0:00:14]} Ke8 {[%emt 0:00:55]} 48. Rxe6+ {[%emt 0:00:43]} Kd8 {[%emt 0:00:56]} 49. Bd4 {[%emt 0:00:26]} Ba3 {[%emt 0:00:56]} 50. Rxb6 {[%emt 0:01:03]} Bc1+ {[%emt 0:00:52]} 51. Kf3 {[%emt 0:00:13]} Bd3 {[%emt 0:00:33]} 52. Be3 {[%emt 0:00:49]} Be4+ {[%emt 0:00:23]} 53. Ke2 {[%emt 0:00:09]} Bb2 {[%emt 0:00:34]} 54. Rxh6 {[%emt 0:00:21]} 1-0

[Event "68th Warsaw-ch-B 2019"]
[Site "Warsaw"]
[Date "2019.11.17"]
[Round "7.3"]
[White "Mazurkiewicz, Wojciech"]
[Black "Podgorski, Maciej"]
[Result "1/2-1/2"]
[ECO "B22"]
[WhiteElo "1557"]
[BlackElo "1737"]
[Annotator "NA RC"]
[PlyCount "139"]
[EventDate "2019.11.14"]
[EventType "swiss"]
[EventCountry "POL"]
[SourceTitle "playchess.com"]
[Source "ChessBase"]
[SourceQuality "1"]
[TimeControl "5400+30"]

1. e4 {[%emt 0:29:33]} c5 {[%emt 0:29:32]} 2. c3 {[%emt 0:00:09]} d5 {[%emt 0:00:05]} 3. exd5 {[%emt 0:00:08]} Qxd5 {[%emt 0:00:08]} 4. d4 {[%emt 0:00:05]} Nc6 {[%emt 0:00:06]} 5. Nf3 {[%emt 0:00:13]} Bg4 {[%emt 0:00:07]} 6. Be2 {[%emt 0:00:15]} e6 {[%emt 0:00:12]} 7. O-O {[%emt 0:00:25]} Nf6 {[%emt 0:00:10]} 8. Be3 {[%emt 0:00:42]} Bd6 {[%emt 0:00:20]} 9. dxc5 {[%emt 0:01:55]} Be7 {[%emt 0:00:13]} 10. h3 {[%emt 0:02:41]} Bh5 {[%emt 0:00:16]} 11. Qxd5 {[%emt 0:03:41]} Nxd5 {[%emt 0:00:07]} 12. b4 {[%emt 0:00:41]} Nxe3 {[%emt 0:00:10]} 13. fxe3 {[%emt 0:00:16]} Bf6 {[%emt 0:01:20]} 14. g4 {[%emt 0:01:39]} Bg6 {[%emt 0:00:05]} 15. Nd4 {[%emt 0:00:47]} Bg5 {[%emt 0:01:22]} 16. Kf2 {[%emt 0:01:47]} h5 {[%emt 0:00:36]} 17. Nd2 {[%emt 0:00:34]} hxg4 {[%emt 0:00:07]} 18. Bxg4 {[%emt 0:00:39]} Ne5 {[%emt 0:00:58]} 19. N2f3 {[%emt 0:02:43]} Nxf3 {[%emt 0:05:42]} 20. Nxf3 {[%emt 0:04:15]} Be7 {[%emt 0:00:21]} 21. Ne5 {[%emt 0:05:42]} Be4 {[%emt 0:00:09]} 22. Kg3 {[%emt 0:08:00]} Bh4+ {[%emt 0:02:24]} 23. Kh2 {[%emt 0:00:12]} Bf6 {[%emt 0:00:21]} 24. Nc4 {[%emt 0:05:56]} Rd8 {[%emt 0:05:44]} 25. Nd6+ {[%emt 0:04:55]} Rxd6 {[%emt 0:00:11]} 26. cxd6 {[%emt 0:00:04]} Be5+ {[%emt 0:00:18]} 27. Kg1 {[%emt 0:00:57]} Bxd6 {[%emt 0:00:04]} 28. Bf3 {[%emt 0:01:11]} Bf5 {[%emt 0:00:20]} 29. Bg4 {[%emt 0:00:43]} Bxg4 {[%emt 0:06:17]} 30. hxg4 {[%emt 0:00:28]} Rh4 {[%emt 0:00:05]} 31. Rf2 {[%emt 0:04:09]} Rxg4+ {[%emt 0:00:06]} 32. Rg2 {[%emt 0:00:17]} Re4 {[%emt 0:00:19]} 33. Rxg7 {[%emt 0:02:24]} Be5 {[%emt 0:02:16]} 34. Rg8+ {[%emt 0:02:00]} Ke7 {[%emt 0:00:01]} 35. Kf2 {[%emt 0:00:35]} Bxc3 {[%emt 0:02:04]} 36. Rc1 {[%emt 0:00:18]} Be5 {[%emt 0:00:04]} 37. a3 {[%emt 0:01:14]} Bd6 {[%emt 0:06:56]} 38. Kf3 {[%emt 0:01:09]} Rh4 {[%emt 0:00:15]} 39. Rg4 {[%emt 0:01:16]} Rh3+ {[%emt 0:01:02]} 40. Ke2 {[%emt 0:00:49]} Rh2+ {[%emt 0:00:21]} 41. Kd3 {[%emt 0:00:09]} Ra2 {[%emt 0:00:31]} 42. Rc3 {[%emt 0:01:16]} Be5 {[%emt 0:00:03]} 43. Rb3 {[%emt 0:00:53]} Bc7 {[%emt 0:01:02]} 44. Rc4 {[%emt 0:00:50]} Bb6 {[%emt 0:01:18]} 45. b5 {[%emt 0:01:00]} f5 {[%emt 0:00:26]} 46. Rh4 {[%emt 0:01:00]} Kd6 {[%emt 0:03:13]} 47. e4 {[%emt 0:01:43]} Bd8 {[%emt 0:01:18]} 48. Rh7 {[%emt 0:02:48]} f4 {[%emt 0:01:01]} 49. Rxb7 {[%emt 0:00:52]} Bb6 {[%emt 0:00:30]} 50. Rf7 {[%emt 0:00:29]} Be3 {[%emt 0:00:42]} 51. Kc4 {[%emt 0:02:31]} Ke5 {[%emt 0:00:57]} 52. Rh7 {[%emt 0:00:44]} Kxe4 {[%emt 0:00:34]} 53. Rh4 {[%emt 0:02:27]} e5 {[%emt 0:02:59]} 54. Rc3 {[%emt 0:01:23]} Bd4 {[%emt 0:00:20]} 55. Kb3 {[%emt 0:00:20]} Bxc3 {[%emt 0:03:30]} 56. Kxa2 {[%emt 0:00:02]} Ke3 {[%emt 0:00:09]} 57. Kb3 {[%emt 0:00:29]} Bd4 {[%emt 0:03:22]} 58. Kc2 {[%emt 0:00:41]} Ke2 {[%emt 0:00:05]} 59. Rh2+ {[%emt 0:00:33]} Bf2 {[%emt 0:00:13]} 60. a4 {[%emt 0:00:15]} Kf3 {[%emt 0:02:29]} 61. Rxf2+ {[%emt 0:02:44]} Kxf2 {[%emt 0:00:04]} 62. a5 {[%emt 0:00:11]} e4 {[%emt 0:00:04]} 63. b6 {[%emt 0:00:05]} e3 {[%emt 0:02:20]} 64. b7 {[%emt 0:00:09]} e2 {[%emt 0:00:07]} 65. b8=Q {[%emt 0:00:06]} e1=Q {[%emt 0:02:30]} 66. Qxf4+ {[%emt 0:00:13]} Kg1 {[%emt 0:00:10]} 67. Qg4+ {[%emt 0:00:16]} Kh2 {[%emt 0:00:42]} 68. Qh5+ {[%emt 0:00:11]} Kg3 {[%emt 0:00:07]} 69. Qg5+ {[%emt 0:00:09]} Kf3 {[%emt 0:00:20]} 70. Qf5+ {[%emt 0:00:00] Ke4} 1/2-1/2

[Event "68th Warsaw-ch-B 2019"]
[Site "Warsaw"]
[Date "2019.11.17"]
[Round "7.4"]
[White "Bartodziej, Bartosz"]
[Black "Jaroszuk, Marcin"]
[Result "1-0"]
[ECO "C55"]
[WhiteElo "1734"]
[BlackElo "1545"]
[Annotator "NA RC"]
[PlyCount "151"]
[EventDate "2019.11.14"]
[EventType "swiss"]
[EventCountry "POL"]
[SourceTitle "playchess.com"]
[Source "ChessBase"]
[SourceQuality "1"]
[TimeControl "5400+30"]

1. e4 {[%emt 0:29:33]} e5 {[%emt 0:29:42]} 2. Nf3 {[%emt 0:00:13]} Nc6 {[%emt 0:00:05]} 3. Bc4 {[%emt 0:00:06]} Nf6 {[%emt 0:00:07]} 4. d3 {[%emt 0:00:11]} Be7 {[%emt 0:00:16]} 5. c3 {[%emt 0:00:16]} d6 {[%emt 0:00:20]} 6. Bb3 {[%emt 0:00:34]} O-O {[%emt 0:00:43]} 7. O-O {[%emt 0:00:20]} Bg4 {[%emt 0:03:14]} 8. Nbd2 {[%emt 0:00:47]} Qd7 {[%emt 0:02:13]} 9. h3 {[%emt 0:00:47]} Bh5 {[%emt 0:00:45]} 10. Re1 {[%emt 0:01:37]} Rad8 {[%emt 0:07:31]} 11. Nf1 {[%emt 0:00:48]} Qc8 {[%emt 0:01:38]} 12. Ng3 {[%emt 0:01:14]} Bg6 {[%emt 0:01:33]} 13. Nh4 {[%emt 0:03:01]} Kh8 {[%emt 0:02:08]} 14. Nhf5 {[%emt 0:02:16]} Nd7 {[%emt 0:01:39]} 15. Be3 {[%emt 0:04:13]} a6 {[%emt 0:00:38]} 16. Qc2 {[%emt 0:05:30]} Bf6 {[%emt 0:03:48]} 17. Qe2 {[%emt 0:07:46]} Ne7 {[%emt 0:02:52]} 18. Nxe7 {[%emt 0:00:20]} Bxe7 {[%emt 0:00:13]} 19. Rad1 {[%emt 0:01:44]} f5 {[%emt 0:05:02]} 20. exf5 {[%emt 0:00:52]} Bxf5 {[%emt 0:01:58]} 21. Nxf5 {[%emt 0:01:58]} Rxf5 {[%emt 0:00:10]} 22. Be6 {[%emt 0:01:43]} Rf6 {[%emt 0:04:59]} 23. Bg4 {[%emt 0:01:16]} Rdf8 {[%emt 0:02:30]} 24. d4 {[%emt 0:02:52]} Qe8 {[%emt 0:04:07]} 25. Bxd7 {[%emt 0:01:06]} Qxd7 {[%emt 0:00:07]} 26. dxe5 {[%emt 0:01:19]} Rg6 {[%emt 0:00:11]} 27. Kh1 {[%emt 0:02:02]} Qc6 {[%emt 0:02:45]} 28. f3 {[%emt 0:01:01]} dxe5 {[%emt 0:02:31]} 29. Bg1 {[%emt 0:02:42]} Bd6 {[%emt 0:02:12]} 30. Bh2 {[%emt 0:01:06]} Rg5 {[%emt 0:02:27]} 31. Qe4 {[%emt 0:02:15]} Qb5 {[%emt 0:03:47]} 32. Qe2 {[%emt 0:01:29]} Qc6 {[%emt 0:01:06]} 33. Qd2 {[%emt 0:03:16]} Rgf5 {[%emt 0:00:26]} 34. Re4 {[%emt 0:01:53]} Kg8 {[%emt 0:01:32]} 35. Qd5+ {[%emt 0:02:54]} Qxd5 {[%emt 0:05:50]} 36. Rxd5 {[%emt 0:00:03]} Re8 {[%emt 0:00:43]} 37. f4 {[%emt 0:01:35]} b6 {[%emt 0:00:42]} 38. g4 {[%emt 0:00:41]} Rff8 {[%emt 0:01:04]} 39. fxe5 {[%emt 0:01:57]} Bc5 {[%emt 0:00:13]} 40. Rf4 {[%emt 0:00:46]} Rxf4 {[%emt 0:00:54]} 41. Bxf4 {[%emt 0:00:20]} Rf8 {[%emt 0:00:37]} 42. Bg3 {[%emt 0:00:49]} Kf7 {[%emt 0:04:43]} 43. Kg2 {[%emt 0:03:36]} Ke6 {[%emt 0:00:28]} 44. Rd3 {[%emt 0:00:51]} Rf7 {[%emt 0:00:34]} 45. a4 {[%emt 0:01:01]} a5 {[%emt 0:00:49]} 46. c4 {[%emt 0:01:02]} Rf8 {[%emt 0:00:27]} 47. b3 {[%emt 0:00:26]} Rf7 {[%emt 0:00:15]} 48. Rd8 {[%emt 0:01:02]} Ke7 {[%emt 0:00:29]} 49. Rc8 {[%emt 0:01:07]} Kd7 {[%emt 0:00:36]} 50. Rxc7+ {[%emt 0:00:35]} Kxc7 {[%emt 0:00:13]} 51. e6+ {[%emt 0:00:07]} Kd8 {[%emt 0:00:42]} 52. exf7 {[%emt 0:00:08]} Ke7 {[%emt 0:00:33]} 53. Kf3 {[%emt 0:00:41]} Kxf7 {[%emt 0:00:22]} 54. Bh4 {[%emt 0:00:59]} Ke6 {[%emt 0:00:16]} 55. Ke4 {[%emt 0:00:08]} g6 {[%emt 0:00:39]} 56. Bg5 {[%emt 0:00:17]} Kd6 {[%emt 0:00:38]} 57. Bh6 {[%emt 0:00:46]} Ke6 {[%emt 0:00:31]} 58. Bg7 {[%emt 0:00:08]} Bd6 {[%emt 0:00:42]} 59. Bd4 {[%emt 0:00:43]} Bc7 {[%emt 0:00:11]} 60. c5 {[%emt 0:00:10]} bxc5 {[%emt 0:00:19]} 61. Bxc5 {[%emt 0:00:11]} Bd8 {[%emt 0:00:30]} 62. b4 {[%emt 0:00:14]} axb4 {[%emt 0:00:24]} 63. Bxb4 {[%emt 0:00:04]} h5 {[%emt 0:00:30]} 64. gxh5 {[%emt 0:00:14]} gxh5 {[%emt 0:00:09]} 65. Bd2 {[%emt 0:00:55]} Kd6 {[%emt 0:00:42]} 66. a5 {[%emt 0:01:38]} Kc6 {[%emt 0:00:27]} 67. a6 {[%emt 0:00:16]} Kb6 {[%emt 0:00:28]} 68. Ba5+ {[%emt 0:00:05]} Kxa6 {[%emt 0:00:48]} 69. Bxd8 {[%emt 0:00:06]} Kb7 {[%emt 0:00:16]} 70. Kf5 {[%emt 0:00:06]} Kc8 {[%emt 0:00:15]} 71. Bh4 {[%emt 0:00:12]} Kd7 {[%emt 0:00:07]} 72. Kg5 {[%emt 0:00:06]} Ke6 {[%emt 0:00:21]} 73. Kxh5 {[%emt 0:00:06]} Kf7 {[%emt 0:00:13]} 74. Kh6 {[%emt 0:00:11]} Kg8 {[%emt 0:00:16]} 75. Kg6 {[%emt 0:00:06]} Kf8 {[%emt 0:00:21]} 76. Bf6 {[%emt 0:00:05]} 1-0

[Event "68th Warsaw-ch-B 2019"]
[Site "Warsaw"]
[Date "2019.11.18"]
[Round "8.1"]
[White "Jaworski, Jakub"]
[Black "Bartodziej, Bartosz"]
[Result "1-0"]
[ECO "A01"]
[WhiteElo "1646"]
[BlackElo "1734"]
[Annotator "NA RC"]
[PlyCount "97"]
[EventDate "2019.11.14"]
[EventType "swiss"]
[EventCountry "POL"]
[SourceTitle "playchess.com"]
[Source "ChessBase"]
[SourceQuality "1"]
[TimeControl "5400+30"]

1. b3 {[%emt 0:29:33]} e5 {[%emt 0:29:58]} 2. Bb2 {[%emt 0:00:07]} Nc6 {[%emt 0:00:17]} 3. e3 {[%emt 0:00:08]} d5 {[%emt 0:00:14]} 4. Bb5 {[%emt 0:00:09]} Bd6 {[%emt 0:00:31]} 5. f4 {[%emt 0:00:07]} f6 {[%emt 0:00:27]} 6. Qh5+ {[%emt 0:00:14]} g6 {[%emt 0:00:15]} 7. Qh4 {[%emt 0:00:07]} exf4 {[%emt 0:01:35]} 8. Nc3 {[%emt 0:00:43]} fxe3 {[%emt 0:17:19]} 9. dxe3 {[%emt 0:00:34]} Be5 {[%emt 0:05:09]} 10. O-O-O {[%emt 0:02:15]} Nge7 {[%emt 0:03:53]} 11. Nxd5 {[%emt 0:08:03]} Bxb2+ {[%emt 0:01:51]} 12. Kxb2 {[%emt 0:00:19]} Nxd5 {[%emt 0:00:23]} 13. e4 {[%emt 0:05:33]} Bd7 {[%emt 0:09:25]} 14. exd5 {[%emt 0:06:16]} Ne5 {[%emt 0:00:47]} 15. Bxd7+ {[%emt 0:01:00]} Nxd7 {[%emt 0:00:45]} 16. Nf3 {[%emt 0:04:02]} O-O {[%emt 0:01:20]} 17. Nd4 {[%emt 0:03:52]} f5 {[%emt 0:03:20]} 18. Qf4 {[%emt 0:03:48]} Nc5 {[%emt 0:02:17]} 19. Qe5 {[%emt 0:08:43]} Qd6 {[%emt 0:02:53]} 20. Rhe1 {[%emt 0:01:25]} Ne4 {[%emt 0:01:10]} 21. Qxd6 {[%emt 0:01:57]} cxd6 {[%emt 0:00:10]} 22. c4 {[%emt 0:01:24]} Rae8 {[%emt 0:02:56]} 23. Ne6 {[%emt 0:01:20]} Rf7 {[%emt 0:00:33]} 24. Re2 {[%emt 0:00:38]} Rfe7 {[%emt 0:00:58]} 25. g4 {[%emt 0:01:51]} a6 {[%emt 0:08:55]} 26. gxf5 {[%emt 0:04:05]} gxf5 {[%emt 0:00:09]} 27. Rg1+ {[%emt 0:02:05]} Kh8 {[%emt 0:00:31]} 28. Rf1 {[%emt 0:00:38]} Nc5 {[%emt 0:01:50]} 29. Rxf5 {[%emt 0:02:47]} Nxe6 {[%emt 0:00:10]} 30. Rxe6 {[%emt 0:00:46]} Rxe6 {[%emt 0:00:05]} 31. dxe6 {[%emt 0:00:03]} Rxe6 {[%emt 0:00:14]} 32. Rf2 {[%emt 0:00:32]} b5 {[%emt 0:01:06]} 33. Kc3 {[%emt 0:01:22]} Kg7 {[%emt 0:00:36]} 34. cxb5 {[%emt 0:00:29]} axb5 {[%emt 0:00:08]} 35. Kb4 {[%emt 0:01:16]} Re5 {[%emt 0:00:13]} 36. a4 {[%emt 0:00:09]} bxa4 {[%emt 0:00:30]} 37. bxa4 {[%emt 0:00:04]} d5 {[%emt 0:03:25]} 38. a5 {[%emt 0:00:17]} d4 {[%emt 0:00:27]} 39. Ra2 {[%emt 0:00:53]} d3 {[%emt 0:00:22]} 40. Kc3 {[%emt 0:00:08]} Rd5 {[%emt 0:02:18]} 41. Kd2 {[%emt 0:00:17]} Kf6 {[%emt 0:00:32]} 42. a6 {[%emt 0:00:25]} Rd8 {[%emt 0:00:11]} 43. a7 {[%emt 0:00:06]} Ra8 {[%emt 0:00:05]} 44. Kxd3 {[%emt 0:00:06]} Ke6 {[%emt 0:00:10]} 45. Ke4 {[%emt 0:00:17]} h6 {[%emt 0:01:24]} 46. Kf4 {[%emt 0:00:12]} Kf6 {[%emt 0:00:33]} 47. Ra6+ {[%emt 0:00:23]} Kg7 {[%emt 0:00:11]} 48. Ke5 {[%emt 0:00:12]} Kf8 {[%emt 0:00:36]} 49. Ke4 1-0

[Event "68th Warsaw-ch-B 2019"]
[Site "Warsaw"]
[Date "2019.11.18"]
[Round "8.2"]
[White "Podgorski, Maciej"]
[Black "Gierech, Pawel"]
[Result "1-0"]
[ECO "C57"]
[WhiteElo "1737"]
[BlackElo "1652"]
[Annotator "NA RC"]
[PlyCount "43"]
[EventDate "2019.11.14"]
[EventType "swiss"]
[EventCountry "POL"]
[SourceTitle "playchess.com"]
[Source "ChessBase"]
[SourceQuality "1"]
[TimeControl "5400+30"]

1. e4 {[%emt 0:31:24]} e5 {[%emt 0:29:51]} 2. Nf3 {[%emt 0:00:04]} Nc6 {[%emt 0:00:09]} 3. Bc4 {[%emt 0:00:04]} Nf6 {[%emt 0:00:11]} 4. Ng5 {[%emt 0:00:04]} d5 {[%emt 0:00:10]} 5. exd5 {[%emt 0:00:03]} b5 {[%emt 0:00:18]} 6. Bf1 {[%emt 0:01:27]} Qxd5 {[%emt 0:01:54]} 7. Nc3 {[%emt 0:00:14]} Qc5 {[%emt 0:00:22]} 8. Bxb5 {[%emt 0:00:23]} h6 {[%emt 0:04:40]} 9. Nf3 {[%emt 0:01:24]} Bd6 {[%emt 0:00:44]} 10. Qe2 {[%emt 0:01:15]} O-O {[%emt 0:00:27]} 11. Na4 {[%emt 0:10:57]} Nd4 {[%emt 0:01:58]} 12. Nxc5 {[%emt 0:00:09]} Nxe2 {[%emt 0:00:13]} 13. Kxe2 {[%emt 0:01:32]} Bxc5 {[%emt 0:00:05]} 14. Nxe5 {[%emt 0:06:27]} Bb7 {[%emt 0:00:57]} 15. c3 {[%emt 0:08:11]} Bd6 {[%emt 0:01:06]} 16. d4 {[%emt 0:01:13]} Kh7 {[%emt 0:01:05]} 17. f3 {[%emt 0:02:03]} c5 {[%emt 0:00:51]} 18. Bd2 {[%emt 0:02:00]} cxd4 {[%emt 0:04:12]} 19. cxd4 {[%emt 0:00:05]} Nd5 {[%emt 0:00:17]} 20. Kf2 {[%emt 0:01:26]} Nb4 {[%emt 0:02:31]} 21. a3 {[%emt 0:03:42]} Nc2 {[%emt 0:00:53]} 22. Bd3+ 1-0